[Event "Early-Titled-Tuesday-Blitz-February-27-2024"]
[Site "Chess.com"]
[Date "2024.02.27"]
[Round "3"]
[White "ansko1999"]
[Black "GMKrikor"]
[Result "1/2-1/2"]
[WhiteElo "2715"]
[BlackElo "2930"]
[TimeControl "180+1"]
[EndTime "8:30:01 PST"]
[Termination "Game drawn by repetition"]

1. e4 {[%clk 0:02:59.8]} 1... c5 {[%clk 0:03:00.3]} 2. Nf3 {[%clk 0:02:59.6]}
2... Nc6 {[%clk 0:03:00.6]} 3. Bb5 {[%clk 0:02:59.4]} 3... Nf6 {[%clk
0:03:00.5]} 4. Bxc6 {[%clk 0:02:57.2]} 4... dxc6 {[%clk 0:03:00.6]} 5. d3 {[%clk
0:02:57]} 5... Bg4 {[%clk 0:03:00.7]} 6. h3 {[%clk 0:02:50.4]} 6... Bh5 {[%clk
0:03:00.7]} 7. Nc3 {[%clk 0:02:46.5]} 7... Nd7 {[%clk 0:03:00.5]} 8. Bf4 {[%clk
0:02:43.1]} 8... f6 {[%clk 0:02:59.5]} 9. g4 {[%clk 0:02:37.3]} 9... Bf7 {[%clk
0:02:51.5]} 10. e5 {[%clk 0:02:36.8]} 10... Nb6 {[%clk 0:02:39.4]} 11. Qe2
{[%clk 0:02:32.1]} 11... Nd5 {[%clk 0:02:38.3]} 12. Bd2 {[%clk 0:02:25.4]} 12...
Qd7 {[%clk 0:02:34.6]} 13. O-O-O {[%clk 0:02:20.2]} 13... O-O-O {[%clk
0:02:25.7]} 14. Kb1 {[%clk 0:02:18.1]} 14... g6 {[%clk 0:02:10.9]} 15. Rhe1
{[%clk 0:02:14.4]} 15... Nc7 {[%clk 0:01:57.6]} 16. Ne4 {[%clk 0:01:54.2]} 16...
b6 {[%clk 0:01:53.6]} 17. exf6 {[%clk 0:01:50]} 17... exf6 {[%clk 0:01:12.9]}
18. Nxf6 {[%clk 0:01:46.2]} 18... Qd6 {[%clk 0:01:10.3]} 19. g5 {[%clk
0:01:34.4]} 19... Bg7 {[%clk 0:00:48.8]} 20. Bc3 {[%clk 0:01:20.5]} 20... Bxf6
{[%clk 0:00:42.2]} 21. Bxf6 {[%clk 0:01:16.6]} 21... Rhe8 {[%clk 0:00:42.7]} 22.
Qd2 {[%clk 0:01:14]} 22... Qd5 {[%clk 0:00:34.9]} 23. Qf4 {[%clk 0:00:54.4]}
23... Qxa2+ {[%clk 0:00:33.4]} 24. Kc1 {[%clk 0:00:54.8]} 24... Nd5 {[%clk
0:00:13.1]} 25. Qg4+ {[%clk 0:00:50.9]} 25... Rd7 {[%clk 0:00:13.5]} 26. Rxe8+
{[%clk 0:00:48.1]} 26... Bxe8 {[%clk 0:00:14.4]} 27. Ne5 {[%clk 0:00:44.4]}
27... Kc7 {[%clk 0:00:06]} 28. Nxd7 {[%clk 0:00:41.4]} 28... Bxd7 {[%clk
0:00:06.9]} 29. Qg3+ {[%clk 0:00:40.2]} 29... Kb7 {[%clk 0:00:07.5]} 30. Qd6
{[%clk 0:00:35.1]} 30... Bf5 {[%clk 0:00:06.5]} 31. Re1 {[%clk 0:00:26.2]} 31...
c4 {[%clk 0:00:05]} 32. dxc4 {[%clk 0:00:11]} 32... Qxc4 {[%clk 0:00:05.9]} 33.
c3 {[%clk 0:00:04.4]} 33... Qd3 {[%clk 0:00:05.9]} 34. Re7+ {[%clk 0:00:02.4]}
34... Nxe7 {[%clk 0:00:06.5]} 35. Qxe7+ {[%clk 0:00:03.2]} 35... Ka6 {[%clk
0:00:06.3]} 36. Qa3+ {[%clk 0:00:03.7]} 36... Kb7 {[%clk 0:00:06.6]} 37. Qe7+
{[%clk 0:00:03.7]} 37... Bd7 {[%clk 0:00:07.3]} 38. Qe3 {[%clk 0:00:03.2]} 38...
Qd5 {[%clk 0:00:06.1]} 39. Qd4 {[%clk 0:00:03.5]} 39... Qxd4 {[%clk 0:00:05.5]}
40. Bxd4 {[%clk 0:00:03.5]} 40... Bxh3 {[%clk 0:00:06.4]} 41. Kd2 {[%clk
0:00:03.2]} 41... c5 {[%clk 0:00:05.3]} 42. Be5 {[%clk 0:00:03.6]} 42... Kc6
{[%clk 0:00:05.6]} 43. b4 {[%clk 0:00:03.6]} 43... Kb5 {[%clk 0:00:04.4]} 44.
Bd6 {[%clk 0:00:03.1]} 44... Kc4 {[%clk 0:00:03.1]} 45. bxc5 {[%clk 0:00:02.9]}
45... bxc5 {[%clk 0:00:04]} 46. Bc7 {[%clk 0:00:03.2]} 46... a6 {[%clk
0:00:04.4]} 47. Bd8 {[%clk 0:00:03.2]} 47... Bf5 {[%clk 0:00:04.7]} 48. Bc7
{[%clk 0:00:03.6]} 48... Kb5 {[%clk 0:00:04.9]} 49. Kc1 {[%clk 0:00:02.9]} 49...
a5 {[%clk 0:00:05.3]} 50. Kb2 {[%clk 0:00:03.3]} 50... a4 {[%clk 0:00:06]} 51.
Bd6 {[%clk 0:00:03.5]} 51... Kc4 {[%clk 0:00:05.8]} 52. Bf8 {[%clk 0:00:04.2]}
52... Bd7 {[%clk 0:00:04.6]} 53. Be7 {[%clk 0:00:04.6]} 53... Kd5 {[%clk
0:00:04.9]} 54. Bf8 {[%clk 0:00:04.9]} 54... c4 {[%clk 0:00:04.1]} 55. Bg7
{[%clk 0:00:04.8]} 55... Ke4 {[%clk 0:00:04.4]} 56. Bd4 {[%clk 0:00:05]} 56...
Kd3 {[%clk 0:00:04.3]} 57. Be3 {[%clk 0:00:05.4]} 57... a3+ {[%clk 0:00:04.2]}
58. Kxa3 {[%clk 0:00:05]} 58... Kxc3 {[%clk 0:00:05.1]} 59. Ka2 {[%clk
0:00:05.4]} 59... Kc2 {[%clk 0:00:05]} 60. Ka1 {[%clk 0:00:05.4]} 60... c3
{[%clk 0:00:05.4]} 61. Bf4 {[%clk 0:00:04.8]} 61... Be6 {[%clk 0:00:05.6]} 62.
Be3 {[%clk 0:00:04.2]} 62... Bd5 {[%clk 0:00:05.3]} 63. Bf4 {[%clk 0:00:04.3]}
63... Be4 {[%clk 0:00:05.8]} 64. Be3 {[%clk 0:00:04]} 64... Kd1 {[%clk
0:00:06.5]} 65. Bf4 {[%clk 0:00:03.5]} 65... Ke2 {[%clk 0:00:07.3]} 66. Be3
{[%clk 0:00:03.6]} 66... Kd3 {[%clk 0:00:07.8]} 67. Kb1 {[%clk 0:00:03.7]} 67...
Ke2+ {[%clk 0:00:04.8]} 68. Kc1 {[%clk 0:00:04.6]} 68... c2 {[%clk 0:00:04.1]}
69. Bd4 {[%clk 0:00:04.2]} 69... Kf3 {[%clk 0:00:04.5]} 70. Be3 {[%clk
0:00:04.9]} 70... Bd3 {[%clk 0:00:04.1]} 71. Kd2 {[%clk 0:00:04.5]} 71... Bf5
{[%clk 0:00:04.9]} 72. Kc1 {[%clk 0:00:04.3]} 72... Ke2 {[%clk 0:00:05.6]} 73.
Bd4 {[%clk 0:00:03.3]} 73... Be4 {[%clk 0:00:03.3]} 74. Be3 {[%clk 0:00:03.5]}
74... Ke1 {[%clk 0:00:03.9]} 75. Bd4 {[%clk 0:00:03.8]} 75... Ke2 {[%clk
0:00:04.5]} 76. Be3 {[%clk 0:00:04.7]} 76... Bf5 {[%clk 0:00:05]} 77. Bd4 {[%clk
0:00:05.1]} 77... Bg4 {[%clk 0:00:05.2]} 78. Be3 {[%clk 0:00:05.5]} 78... Kd3
{[%clk 0:00:05.9]} 79. Bc5 {[%clk 0:00:05.5]} 79... Bf5 {[%clk 0:00:06.4]} 80.
Be3 {[%clk 0:00:06.4]} 80... Ke4 {[%clk 0:00:06.7]} 81. Ba7 {[%clk 0:00:07]}
81... Kf3 {[%clk 0:00:07.6]} 82. Be3 {[%clk 0:00:07.6]} 82... Ke2 {[%clk
0:00:07.8]} 1/2-1/2

[Event "Early-Titled-Tuesday-Blitz-February-27-2024"]
[Site "Chess.com"]
[Date "2024.02.27"]
[Round "3"]
[White "Manukyan_Artak"]
[Black "Fonsofan"]
[Result "1/2-1/2"]
[WhiteElo "2495"]
[BlackElo "2732"]
[TimeControl "180+1"]
[EndTime "8:30:03 PST"]
[Termination "Game drawn - insufficient material"]

1. e4 {[%clk 0:03:00.9]} 1... c6 {[%clk 0:02:56]} 2. d4 {[%clk 0:03:00.1]} 2...
d5 {[%clk 0:02:56.5]} 3. e5 {[%clk 0:03:00.7]} 3... Bf5 {[%clk 0:02:56.5]} 4. c4
{[%clk 0:03:01]} 4... e6 {[%clk 0:02:55.6]} 5. Nc3 {[%clk 0:03:01.2]} 5... Ne7
{[%clk 0:02:53.7]} 6. Nf3 {[%clk 0:03:01.3]} 6... Nd7 {[%clk 0:02:52.2]} 7. Nh4
{[%clk 0:03:01.4]} 7... h5 {[%clk 0:02:43.6]} 8. Nxf5 {[%clk 0:02:52.8]} 8...
Nxf5 {[%clk 0:02:44.5]} 9. cxd5 {[%clk 0:02:52.5]} 9... cxd5 {[%clk 0:02:45.1]}
10. Be3 {[%clk 0:02:45.6]} 10... Qb6 {[%clk 0:02:34.4]} 11. Bb5 {[%clk
0:02:42.8]} 11... a6 {[%clk 0:02:30.5]} 12. Bxd7+ {[%clk 0:02:29.3]} 12... Kxd7
{[%clk 0:02:31.4]} 13. O-O {[%clk 0:02:28.4]} 13... Rc8 {[%clk 0:02:18.7]} 14.
Ne2 {[%clk 0:01:59.9]} 14... Be7 {[%clk 0:02:11.6]} 15. Ng3 {[%clk 0:01:45.5]}
15... Nxg3 {[%clk 0:02:00.5]} 16. hxg3 {[%clk 0:01:46.4]} 16... Rc7 {[%clk
0:01:31.8]} 17. Qa4+ {[%clk 0:01:26.1]} 17... Qc6 {[%clk 0:01:18]} 18. Qxc6+
{[%clk 0:01:24]} 18... Rxc6 {[%clk 0:01:18.9]} 19. Rfc1 {[%clk 0:01:23.8]} 19...
Rhc8 {[%clk 0:00:54.8]} 20. Kf1 {[%clk 0:01:20.9]} 20... f6 {[%clk 0:00:50.9]}
21. Ke2 {[%clk 0:01:10.9]} 21... Rc2+ {[%clk 0:00:36.1]} 22. Kd3 {[%clk
0:00:58.6]} 22... Rxb2 {[%clk 0:00:34]} 23. Rxc8 {[%clk 0:00:58.2]} 23... Kxc8
{[%clk 0:00:34.9]} 24. a4 {[%clk 0:00:50.2]} 24... f5 {[%clk 0:00:26.4]} 25. Bd2
{[%clk 0:00:39.4]} 25... Bb4 {[%clk 0:00:17]} 26. Bxb4 {[%clk 0:00:33.1]} 26...
Rxb4 {[%clk 0:00:17.9]} 27. Kc3 {[%clk 0:00:27.9]} 27... Rc4+ {[%clk 0:00:16.9]}
28. Kd3 {[%clk 0:00:28]} 28... a5 {[%clk 0:00:12.3]} 29. Ra2 {[%clk 0:00:23.5]}
29... g6 {[%clk 0:00:11.4]} 30. Ke3 {[%clk 0:00:20.6]} 30... g5 {[%clk 0:00:08]}
31. Kd3 {[%clk 0:00:20.9]} 31... Kc7 {[%clk 0:00:06.3]} 32. Ra1 {[%clk
0:00:20.6]} 32... Kc6 {[%clk 0:00:04.7]} 33. Rh1 {[%clk 0:00:20.3]} 33... Rxa4
{[%clk 0:00:04.2]} 34. Rxh5 {[%clk 0:00:20.9]} 34... Ra3+ {[%clk 0:00:04.7]} 35.
Kc2 {[%clk 0:00:20.2]} 35... Ra2+ {[%clk 0:00:05.2]} 36. Kc3 {[%clk 0:00:19.8]}
36... Rxf2 {[%clk 0:00:06]} 37. Rxg5 {[%clk 0:00:19.7]} 37... b5 {[%clk
0:00:06.4]} 38. Rg6 {[%clk 0:00:19.8]} 38... b4+ {[%clk 0:00:05.9]} 39. Kd3
{[%clk 0:00:18.5]} 39... Rxg2 {[%clk 0:00:05.7]} 40. Rxe6+ {[%clk 0:00:18.3]}
40... Kb7 {[%clk 0:00:05.5]} 41. Rd6 {[%clk 0:00:17.4]} 41... Rxg3+ {[%clk
0:00:05.9]} 42. Kc2 {[%clk 0:00:17.1]} 42... a4 {[%clk 0:00:05.9]} 43. Rxd5
{[%clk 0:00:17.5]} 43... Kc6 {[%clk 0:00:06.2]} 44. Rc5+ {[%clk 0:00:17.7]}
44... Kb6 {[%clk 0:00:06.7]} 45. e6 {[%clk 0:00:17.8]} 45... Re3 {[%clk
0:00:07.2]} 46. Rxf5 {[%clk 0:00:13.7]} 46... Rxe6 {[%clk 0:00:07.7]} 47. Kd3
{[%clk 0:00:14.1]} 47... Rc6 {[%clk 0:00:07.6]} 48. d5 {[%clk 0:00:12.5]} 48...
Rc1 {[%clk 0:00:07.8]} 49. Rf6+ {[%clk 0:00:11.5]} 49... Kb5 {[%clk 0:00:07.2]}
50. d6 {[%clk 0:00:11.8]} 50... Rd1+ {[%clk 0:00:07]} 51. Kc2 {[%clk 0:00:11.9]}
51... Rd5 {[%clk 0:00:07.4]} 52. Kb2 {[%clk 0:00:10.5]} 52... a3+ {[%clk
0:00:07.6]} 53. Kb3 {[%clk 0:00:10.5]} 53... Rd3+ {[%clk 0:00:07.1]} 54. Kc2
{[%clk 0:00:10.9]} 54... Rd4 {[%clk 0:00:07.4]} 55. Kb3 {[%clk 0:00:10.4]} 55...
Rd3+ {[%clk 0:00:08]} 56. Kc2 {[%clk 0:00:10.7]} 56... Rc3+ {[%clk 0:00:08.5]}
57. Kd2 {[%clk 0:00:09.6]} 57... Rc8 {[%clk 0:00:07.7]} 58. d7 {[%clk
0:00:08.6]} 58... Rd8 {[%clk 0:00:07.1]} 59. Rf7 {[%clk 0:00:08.6]} 59... Kc6
{[%clk 0:00:06.9]} 60. Kc2 {[%clk 0:00:08.9]} 60... Rxd7 {[%clk 0:00:06.8]} 61.
Rf5 {[%clk 0:00:09.3]} 61... Rd4 {[%clk 0:00:06.7]} 62. Kb3 {[%clk 0:00:09.5]}
62... Kb6 {[%clk 0:00:06.9]} 63. Re5 {[%clk 0:00:09.3]} 63... Rg4 {[%clk
0:00:06.8]} 64. Rf5 {[%clk 0:00:09.7]} 64... Rg1 {[%clk 0:00:07.1]} 65. Rf6+
{[%clk 0:00:07.2]} 65... Kc7 {[%clk 0:00:06.8]} 66. Rf7+ {[%clk 0:00:06.9]}
66... Kd6 {[%clk 0:00:06.2]} 67. Rf2 {[%clk 0:00:06.9]} 67... Rb1+ {[%clk
0:00:05.8]} 68. Ka2 {[%clk 0:00:05.6]} 68... Re1 {[%clk 0:00:05.7]} 69. Kb3
{[%clk 0:00:05.9]} 69... Re4 {[%clk 0:00:05.9]} 70. Rf5 {[%clk 0:00:05.6]} 70...
Kc6 {[%clk 0:00:05.7]} 71. Rg5 {[%clk 0:00:05.5]} 71... Re1 {[%clk 0:00:05.8]}
72. Rg6+ {[%clk 0:00:03.9]} 72... Kd5 {[%clk 0:00:06]} 73. Rg5+ {[%clk
0:00:04.4]} 73... Kd4 {[%clk 0:00:05.9]} 74. Rg4+ {[%clk 0:00:04.9]} 74... Ke5
{[%clk 0:00:05.7]} 75. Rg5+ {[%clk 0:00:04.4]} 75... Kf4 {[%clk 0:00:05.7]} 76.
Rg2 {[%clk 0:00:04.5]} 76... Rb1+ {[%clk 0:00:04.9]} 77. Ka2 {[%clk 0:00:03.6]}
77... Kf3 {[%clk 0:00:03.7]} 78. Rd2 {[%clk 0:00:03]} 78... Re1 {[%clk
0:00:03.8]} 79. Kb3 {[%clk 0:00:02.9]} 79... Re2 {[%clk 0:00:03.7]} 80. Rd4
{[%clk 0:00:02.4]} 80... a2 {[%clk 0:00:03.2]} 81. Rd1 {[%clk 0:00:01.8]} 81...
Ke3 {[%clk 0:00:02.4]} 82. Ra1 {[%clk 0:00:02.4]} 82... Kd2 {[%clk 0:00:01.7]}
83. Rxa2+ {[%clk 0:00:02.2]} 83... Kd3 {[%clk 0:00:02.4]} 84. Rxe2 {[%clk
0:00:03]} 84... Kxe2 {[%clk 0:00:03.3]} 85. Kxb4 {[%clk 0:00:03.6]} 1/2-1/2

[Event "Early-Titled-Tuesday-Blitz-February-27-2024"]
[Site "Chess.com"]
[Date "2024.02.27"]
[Round "3"]
[White "Ticoluis"]
[Black "karinachess1"]
[Result "1/2-1/2"]
[WhiteElo "2465"]
[BlackElo "2628"]
[TimeControl "180+1"]
[EndTime "8:30:11 PST"]
[Termination "Game drawn - insufficient material"]

1. e4 {[%clk 0:03:00.9]} 1... e5 {[%clk 0:02:59.8]} 2. Nf3 {[%clk 0:02:59.9]}
2... Nc6 {[%clk 0:03:00.1]} 3. Bb5 {[%clk 0:02:59]} 3... Nge7 {[%clk 0:03:00.3]}
4. Nc3 {[%clk 0:02:58]} 4... Ng6 {[%clk 0:02:56.4]} 5. Bxc6 {[%clk 0:02:55.5]}
5... dxc6 {[%clk 0:02:52.9]} 6. O-O {[%clk 0:02:53.2]} 6... Bc5 {[%clk
0:02:51.4]} 7. d3 {[%clk 0:02:53.2]} 7... O-O {[%clk 0:02:51.2]} 8. Be3 {[%clk
0:02:51.5]} 8... Qe7 {[%clk 0:02:47.2]} 9. Nd2 {[%clk 0:02:49.6]} 9... Be6
{[%clk 0:02:39.4]} 10. Nb3 {[%clk 0:02:46.2]} 10... Bb6 {[%clk 0:02:38.3]} 11.
Qd2 {[%clk 0:02:40.5]} 11... Rad8 {[%clk 0:02:36]} 12. Kh1 {[%clk 0:02:32.7]}
12... c5 {[%clk 0:02:30]} 13. Qe2 {[%clk 0:02:26.1]} 13... c4 {[%clk 0:02:05.4]}
14. dxc4 {[%clk 0:02:23.8]} 14... Bxe3 {[%clk 0:02:04.5]} 15. fxe3 {[%clk
0:02:23.7]} 15... c6 {[%clk 0:02:04.7]} 16. a3 {[%clk 0:02:14.4]} 16... f6
{[%clk 0:02:00.6]} 17. Rad1 {[%clk 0:02:11.2]} 17... Qf7 {[%clk 0:01:56.4]} 18.
Nd2 {[%clk 0:01:53.2]} 18... Rd7 {[%clk 0:01:53.1]} 19. b3 {[%clk 0:01:51.6]}
19... Qe7 {[%clk 0:01:48]} 20. Ndb1 {[%clk 0:01:47.2]} 20... Rfd8 {[%clk
0:01:42.3]} 21. Rxd7 {[%clk 0:01:44.9]} 21... Rxd7 {[%clk 0:01:39.1]} 22. Rd1
{[%clk 0:01:45]} 22... Nf8 {[%clk 0:01:38.3]} 23. Rxd7 {[%clk 0:01:39.8]} 23...
Nxd7 {[%clk 0:01:39.2]} 24. b4 {[%clk 0:01:34.3]} 24... Nb6 {[%clk 0:01:27.6]}
25. Nd2 {[%clk 0:01:29.6]} 25... Qf7 {[%clk 0:01:13.5]} 26. c5 {[%clk
0:01:28.2]} 26... Nd7 {[%clk 0:01:14.2]} 27. Qd3 {[%clk 0:01:26.7]} 27... h5
{[%clk 0:01:09.3]} 28. h3 {[%clk 0:01:26.5]} 28... h4 {[%clk 0:00:50.9]} 29. Nf3
{[%clk 0:01:09.1]} 29... g5 {[%clk 0:00:46.8]} 30. Nh2 {[%clk 0:01:08]} 30...
Nf8 {[%clk 0:00:25.3]} 31. Nd1 {[%clk 0:00:52.1]} 31... Kg7 {[%clk 0:00:05.6]}
32. Nf2 {[%clk 0:00:48.6]} 32... Qc7 {[%clk 0:00:05.9]} 33. Nfg4 {[%clk
0:00:46]} 33... a5 {[%clk 0:00:05.9]} 34. Qd2 {[%clk 0:00:38.4]} 34... axb4
{[%clk 0:00:05.9]} 35. axb4 {[%clk 0:00:37.4]} 35... b6 {[%clk 0:00:06.3]} 36.
Qf2 {[%clk 0:00:35.7]} 36... Nd7 {[%clk 0:00:04.8]} 37. g3 {[%clk 0:00:30.1]}
37... hxg3 {[%clk 0:00:04.4]} 38. Qxg3 {[%clk 0:00:30.7]} 38... bxc5 {[%clk
0:00:05.3]} 39. h4 {[%clk 0:00:30.2]} 39... Qd6 {[%clk 0:00:03.6]} 40. hxg5
{[%clk 0:00:29.7]} 40... fxg5 {[%clk 0:00:04.5]} 41. Nf2 {[%clk 0:00:27.7]}
41... Qe7 {[%clk 0:00:05]} 42. Nf3 {[%clk 0:00:27]} 42... Kg6 {[%clk 0:00:04.1]}
43. Ng4 {[%clk 0:00:24.1]} 43... Qh7+ {[%clk 0:00:03.6]} 44. Kg2 {[%clk
0:00:23.3]} 44... cxb4 {[%clk 0:00:03.6]} 45. Ngxe5+ {[%clk 0:00:22.2]} 45...
Nxe5 {[%clk 0:00:04.1]} 46. Qxe5 {[%clk 0:00:20.7]} 46... Qf7 {[%clk 0:00:04.2]}
47. Qxg5+ {[%clk 0:00:19.1]} 47... Kh7 {[%clk 0:00:04.6]} 48. Qh4+ {[%clk
0:00:18.1]} 48... Kg8 {[%clk 0:00:04.6]} 49. Qd8+ {[%clk 0:00:17.4]} 49... Kg7
{[%clk 0:00:05.1]} 50. Ng5 {[%clk 0:00:16.1]} 50... Qg6 {[%clk 0:00:05.5]} 51.
Qd4+ {[%clk 0:00:15.6]} 51... Kg8 {[%clk 0:00:05.5]} 52. Qe5 {[%clk 0:00:15.7]}
52... Bf7 {[%clk 0:00:05]} 53. Qb8+ {[%clk 0:00:15.2]} 53... Kg7 {[%clk
0:00:05]} 54. Qe5+ {[%clk 0:00:15.2]} 54... Qf6 {[%clk 0:00:05.6]} 55. Qg3
{[%clk 0:00:14.6]} 55... Bg6 {[%clk 0:00:05.5]} 56. e5 {[%clk 0:00:14.3]} 56...
Qf5 {[%clk 0:00:06]} 57. e4 {[%clk 0:00:13.6]} 57... Qd7 {[%clk 0:00:06.3]} 58.
e6 {[%clk 0:00:14]} 58... Qd2+ {[%clk 0:00:06.5]} 59. Kh3 {[%clk 0:00:14.6]}
59... Kf6 {[%clk 0:00:06.2]} 60. Nf3 {[%clk 0:00:13.1]} 60... Qh6+ {[%clk
0:00:06]} 61. Kg2 {[%clk 0:00:12.1]} 61... Kg7 {[%clk 0:00:06.6]} 62. Qe5+
{[%clk 0:00:12.2]} 62... Kh7 {[%clk 0:00:07.2]} 63. Ng5+ {[%clk 0:00:11.6]}
63... Kg8 {[%clk 0:00:07]} 64. Qb8+ {[%clk 0:00:11.9]} 64... Qf8 {[%clk
0:00:06.8]} 65. Qe5 {[%clk 0:00:10.8]} 65... Qg7 {[%clk 0:00:07.3]} 66. Qd6
{[%clk 0:00:10.5]} 66... Qf8 {[%clk 0:00:07.8]} 67. e7 {[%clk 0:00:10.9]} 67...
Qe8 {[%clk 0:00:07.9]} 68. Qe6+ {[%clk 0:00:10.9]} 68... Kg7 {[%clk 0:00:08.5]}
69. Qe5+ {[%clk 0:00:11.3]} 69... Kg8 {[%clk 0:00:08.7]} 70. Qf6 {[%clk
0:00:11.8]} 70... b3 {[%clk 0:00:07.5]} 71. Ne6 {[%clk 0:00:11.8]} 71... Qf7
{[%clk 0:00:07.5]} 72. Qe5 {[%clk 0:00:11]} 72... Qxe7 {[%clk 0:00:07.1]} 73.
cxb3 {[%clk 0:00:10.9]} 73... Qf7 {[%clk 0:00:06.9]} 74. Qb8+ {[%clk 0:00:10.6]}
74... Qe8 {[%clk 0:00:07.3]} 75. Qxe8+ {[%clk 0:00:09.6]} 75... Bxe8 {[%clk
0:00:07.4]} 76. Nd4 {[%clk 0:00:10.3]} 76... Kf7 {[%clk 0:00:07.7]} 77. Kf3
{[%clk 0:00:09.9]} 77... Ke7 {[%clk 0:00:08.3]} 78. Ke3 {[%clk 0:00:09.2]} 78...
c5 {[%clk 0:00:08.9]} 79. Ne2 {[%clk 0:00:09.4]} 79... Ke6 {[%clk 0:00:09.4]}
80. Kd3 {[%clk 0:00:09.1]} 80... Kd6 {[%clk 0:00:09.6]} 81. Kc3 {[%clk
0:00:09.2]} 81... Bf7 {[%clk 0:00:10.1]} 82. Nf4 {[%clk 0:00:09.2]} 82... Ke5
{[%clk 0:00:10.5]} 83. Nd3+ {[%clk 0:00:09.6]} 83... Kxe4 {[%clk 0:00:11]} 84.
Nxc5+ {[%clk 0:00:10.2]} 84... Kd5 {[%clk 0:00:11.1]} 85. b4 {[%clk 0:00:10.4]}
85... Kc6 {[%clk 0:00:11.4]} 86. Nd3 {[%clk 0:00:10.5]} 86... Kb5 {[%clk
0:00:11.4]} 87. Ne5 {[%clk 0:00:10.7]} 87... Be6 {[%clk 0:00:11.4]} 88. Nf3
{[%clk 0:00:11.1]} 88... Bg8 {[%clk 0:00:11.4]} 89. Nd4+ {[%clk 0:00:12]} 89...
Kb6 {[%clk 0:00:12]} 90. b5 {[%clk 0:00:11.2]} 90... Bf7 {[%clk 0:00:11.5]} 91.
Kb4 {[%clk 0:00:11.7]} 91... Be8 {[%clk 0:00:12]} 92. Kc4 {[%clk 0:00:10.3]}
92... Bxb5+ {[%clk 0:00:12.9]} 1/2-1/2